[Event "Late-Titled-Tuesday-Blitz-April-16-2024"]
[Site "Chess.com"]
[Date "2024.04.16"]
[Round "1"]
[White "rajesh1464"]
[Black "albi1999"]
[Result "0-1"]
[WhiteElo "2355"]
[BlackElo "2659"]
[TimeControl "180+1"]
[EndTime "14:05:09 PDT"]
[Termination "albi1999 won by resignation"]

1. d4 {[%clk 0:02:59.2]} 1... Nf6 {[%clk 0:02:58.9]} 2. c4 {[%clk 0:02:58.7]}
2... c6 {[%clk 0:02:56.8]} 3. Nf3 {[%clk 0:02:57.9]} 3... d5 {[%clk 0:02:57.7]}
4. cxd5 {[%clk 0:02:55.6]} 4... cxd5 {[%clk 0:02:58.6]} 5. Nc3 {[%clk 0:02:56]}
5... Nc6 {[%clk 0:02:58.8]} 6. Bf4 {[%clk 0:02:55.3]} 6... Nh5 {[%clk
0:02:58.8]} 7. Bg3 {[%clk 0:02:45.5]} 7... Nxg3 {[%clk 0:02:56.9]} 8. hxg3
{[%clk 0:02:46.4]} 8... g6 {[%clk 0:02:47.1]} 9. e3 {[%clk 0:02:43]} 9... Bg7
{[%clk 0:02:47.3]} 10. Bd3 {[%clk 0:02:30]} 10... O-O {[%clk 0:02:46.7]} 11. O-O
{[%clk 0:02:19]} 11... h5 {[%clk 0:02:43.1]} 12. Rc1 {[%clk 0:02:17.5]} 12... e6
{[%clk 0:02:34.9]} 13. Na4 {[%clk 0:01:57.9]} 13... Qd6 {[%clk 0:02:31.6]} 14.
Qb3 {[%clk 0:01:54.5]} 14... b6 {[%clk 0:02:27.5]} 15. Rc2 {[%clk 0:01:47.4]}
15... Bd7 {[%clk 0:02:26.7]} 16. Rfc1 {[%clk 0:01:46.5]} 16... Na5 {[%clk
0:02:26.1]} 17. Qc3 {[%clk 0:01:30]} 17... Bxa4 {[%clk 0:02:24.6]} 18. b3 {[%clk
0:01:30.1]} 18... Bd7 {[%clk 0:02:13.1]} 19. Ba6 {[%clk 0:01:26.3]} 19... Rfd8
{[%clk 0:02:01.6]} 20. Qd2 {[%clk 0:01:11.8]} 20... Rab8 {[%clk 0:01:54]} 21.
Rc7 {[%clk 0:01:11]} 21... Nc6 {[%clk 0:01:53.1]} 22. R1xc6 {[%clk 0:00:17.7]}
22... Bxc6 {[%clk 0:01:54]} 23. Rxa7 {[%clk 0:00:18.3]} 23... Ra8 {[%clk
0:01:46.8]} 24. Rxa8 {[%clk 0:00:15.4]} 24... Rxa8 {[%clk 0:01:47.7]} 25. Bd3
{[%clk 0:00:15.4]} 25... Bd7 {[%clk 0:01:44.4]} 0-1

[Event "Late-Titled-Tuesday-Blitz-April-16-2024"]
[Site "Chess.com"]
[Date "2024.04.16"]
[Round "1"]
[White "maximnovik"]
[Black "hikeman2017"]
[Result "1-0"]
[WhiteElo "2561"]
[BlackElo "2196"]
[TimeControl "180+1"]
[EndTime "14:05:14 PDT"]
[Termination "maximnovik won by resignation"]

1. e4 {[%clk 0:02:59.2]} 1... e6 {[%clk 0:02:58.9]} 2. d4 {[%clk 0:02:59]} 2...
d5 {[%clk 0:02:59]} 3. e5 {[%clk 0:02:59.4]} 3... c5 {[%clk 0:02:59.1]} 4. c3
{[%clk 0:02:59.9]} 4... Nc6 {[%clk 0:02:58.9]} 5. Nf3 {[%clk 0:03:00.5]} 5...
Qb6 {[%clk 0:02:58]} 6. Bd3 {[%clk 0:03:00.5]} 6... cxd4 {[%clk 0:02:57.8]} 7.
O-O {[%clk 0:03:01]} 7... Bd7 {[%clk 0:02:58.4]} 8. Re1 {[%clk 0:03:00.8]} 8...
Rc8 {[%clk 0:02:58.7]} 9. Nbd2 {[%clk 0:02:56.7]} 9... a5 {[%clk 0:02:49.1]} 10.
Nb3 {[%clk 0:02:38.2]} 10... dxc3 {[%clk 0:02:44.6]} 11. bxc3 {[%clk 0:02:38.2]}
11... a4 {[%clk 0:02:44.4]} 12. Be3 {[%clk 0:02:35.3]} 12... d4 {[%clk
0:02:33.2]} 13. Nbxd4 {[%clk 0:02:31.9]} 13... Nxd4 {[%clk 0:02:31.1]} 14. cxd4
{[%clk 0:02:24.5]} 14... Qa5 {[%clk 0:02:23.8]} 15. Rb1 {[%clk 0:02:18.3]} 15...
Bc6 {[%clk 0:02:23.3]} 16. Nd2 {[%clk 0:02:11.6]} 16... Bd5 {[%clk 0:02:06.4]}
17. Rb5 {[%clk 0:02:05.2]} 17... Qa7 {[%clk 0:01:29.4]} 18. Rxd5 {[%clk
0:02:02.3]} 18... exd5 {[%clk 0:01:28.4]} 19. Bb5+ {[%clk 0:02:02]} 19... Kd8
{[%clk 0:01:28.1]} 20. Qf3 {[%clk 0:02:00.4]} 20... Ne7 {[%clk 0:01:20.6]} 21.
Qxf7 {[%clk 0:01:58.9]} 21... Qb6 {[%clk 0:01:06.9]} 22. Bxa4 {[%clk 0:01:53.9]}
22... Qg6 {[%clk 0:01:02.2]} 23. Qf3 {[%clk 0:01:47.7]} 23... Qe6 {[%clk
0:00:56.4]} 24. Bb3 {[%clk 0:01:38]} 24... g6 {[%clk 0:00:49.9]} 25. Bg5 {[%clk
0:01:36.1]} 25... Ke8 {[%clk 0:00:43.6]} 26. Bf6 {[%clk 0:01:31.1]} 26... Rg8
{[%clk 0:00:42.7]} 27. Nf1 {[%clk 0:01:28.4]} 27... Bg7 {[%clk 0:00:41.8]} 28.
Bxe7 {[%clk 0:01:27.7]} 28... Qxe7 {[%clk 0:00:39.8]} 29. Qxd5 {[%clk
0:01:26.8]} 1-0

[Event "Late-Titled-Tuesday-Blitz-April-16-2024"]
[Site "Chess.com"]
[Date "2024.04.16"]
[Round "1"]
[White "Caterpiller35"]
[Black "combidharma"]
[Result "1-0"]
[WhiteElo "2478"]
[BlackElo "2820"]
[TimeControl "180+1"]
[EndTime "14:05:19 PDT"]
[Termination "Caterpiller35 won by resignation"]

1. d4 {[%clk 0:02:59.3]} 1... Nf6 {[%clk 0:02:57.4]} 2. Bg5 {[%clk 0:02:58.9]}
2... g6 {[%clk 0:02:51.3]} 3. Bxf6 {[%clk 0:02:54.5]} 3... exf6 {[%clk
0:02:52.2]} 4. e3 {[%clk 0:02:55.1]} 4... Bg7 {[%clk 0:02:50.2]} 5. c4 {[%clk
0:02:55.1]} 5... O-O {[%clk 0:02:50]} 6. Nc3 {[%clk 0:02:55.7]} 6... d6 {[%clk
0:02:44]} 7. g3 {[%clk 0:02:55.6]} 7... Nc6 {[%clk 0:02:43.1]} 8. Bg2 {[%clk
0:02:54.6]} 8... Bd7 {[%clk 0:02:32.9]} 9. Nge2 {[%clk 0:02:51.2]} 9... Qc8
{[%clk 0:02:30.7]} 10. Nd5 {[%clk 0:02:47.4]} 10... Re8 {[%clk 0:02:29.2]} 11.
O-O {[%clk 0:02:46.1]} 11... Rb8 {[%clk 0:02:25.9]} 12. b4 {[%clk 0:02:45.9]}
12... Ne7 {[%clk 0:02:24.4]} 13. Nxe7+ {[%clk 0:02:45.3]} 13... Rxe7 {[%clk
0:02:25.3]} 14. Nc3 {[%clk 0:02:45.3]} 14... Bg4 {[%clk 0:02:18.4]} 15. Qa4
{[%clk 0:02:39.3]} 15... a6 {[%clk 0:02:18.4]} 16. b5 {[%clk 0:02:34.7]} 16...
axb5 {[%clk 0:02:16.8]} 17. Qxb5 {[%clk 0:02:33.6]} 17... c6 {[%clk 0:02:15.3]}
18. Qb3 {[%clk 0:02:32.4]} 18... Bh3 {[%clk 0:02:14.8]} 19. a4 {[%clk
0:02:28.5]} 19... Bxg2 {[%clk 0:02:08.7]} 20. Kxg2 {[%clk 0:02:29.4]} 20... f5
{[%clk 0:02:09.6]} 21. a5 {[%clk 0:02:28.3]} 21... f4 {[%clk 0:02:09.6]} 22.
exf4 {[%clk 0:02:22]} 22... Bxd4 {[%clk 0:02:08.1]} 23. Rfd1 {[%clk 0:02:21.4]}
23... c5 {[%clk 0:02:05]} 24. Nd5 {[%clk 0:02:19.4]} 24... Re2 {[%clk
0:01:55.5]} 25. Rxd4 {[%clk 0:02:19]} 25... cxd4 {[%clk 0:01:52.8]} 26. Qd3
{[%clk 0:02:19]} 26... Qe6 {[%clk 0:01:48.2]} 27. Qxd4 {[%clk 0:02:15.4]} 27...
Rc8 {[%clk 0:01:22.8]} 28. a6 {[%clk 0:02:06.1]} 28... bxa6 {[%clk 0:01:20.5]}
29. Rxa6 {[%clk 0:02:07]} 29... h5 {[%clk 0:01:11.6]} 30. Nf6+ {[%clk
0:02:05.1]} 30... Kf8 {[%clk 0:01:09.5]} 31. Rxd6 {[%clk 0:02:04.9]} 31... Qxc4
{[%clk 0:00:59.8]} 32. Rd8+ {[%clk 0:01:59.2]} 32... Rxd8 {[%clk 0:00:44.6]} 33.
Qxc4 {[%clk 0:01:59.2]} 33... Rdd2 {[%clk 0:00:43.5]} 34. Ne4 {[%clk 0:01:46.9]}
34... Rc2 {[%clk 0:00:43.2]} 35. Qd4 {[%clk 0:01:45.7]} 1-0

[Event "Late-Titled-Tuesday-Blitz-April-16-2024"]
[Site "Chess.com"]
[Date "2024.04.16"]
[Round "1"]
[White "only_strong_moves"]
[Black "Indefatigable11"]
[Result "1-0"]
[WhiteElo "2661"]
[BlackElo "2358"]
[TimeControl "180+1"]
[EndTime "14:05:24 PDT"]
[Termination "only_strong_moves won by checkmate"]

1. d4 {[%clk 0:03:00.9]} 1... Nf6 {[%clk 0:02:59.8]} 2. c4 {[%clk 0:03:00.2]}
2... e6 {[%clk 0:02:58.4]} 3. Nf3 {[%clk 0:03:00.7]} 3... d5 {[%clk 0:02:56.3]}
4. Nc3 {[%clk 0:03:00.7]} 4... Be7 {[%clk 0:02:55.9]} 5. cxd5 {[%clk 0:03:00.2]}
5... exd5 {[%clk 0:02:56.1]} 6. Bg5 {[%clk 0:03:00.8]} 6... O-O {[%clk
0:02:51.7]} 7. e3 {[%clk 0:03:00.6]} 7... c6 {[%clk 0:02:49.2]} 8. Bd3 {[%clk
0:03:00]} 8... Re8 {[%clk 0:02:44.6]} 9. Qc2 {[%clk 0:02:59.6]} 9... h6 {[%clk
0:02:42.1]} 10. Bf4 {[%clk 0:02:59.9]} 10... Nh5 {[%clk 0:02:39.2]} 11. O-O
{[%clk 0:02:59.6]} 11... Nxf4 {[%clk 0:02:38.6]} 12. exf4 {[%clk 0:03:00.5]}
12... Nd7 {[%clk 0:02:38.4]} 13. Rfe1 {[%clk 0:02:58.5]} 13... Nf6 {[%clk
0:02:35.5]} 14. Ne5 {[%clk 0:02:58.5]} 14... Bd6 {[%clk 0:02:29.1]} 15. h3
{[%clk 0:02:55.5]} 15... Be6 {[%clk 0:02:21.6]} 16. Re2 {[%clk 0:02:52.1]} 16...
Rc8 {[%clk 0:02:01.8]} 17. Rd1 {[%clk 0:02:51.9]} 17... Qc7 {[%clk 0:01:52.4]}
18. Qd2 {[%clk 0:02:44.7]} 18... b5 {[%clk 0:01:38.2]} 19. a3 {[%clk 0:02:43.9]}
19... a5 {[%clk 0:01:38]} 20. Bb1 {[%clk 0:02:43.2]} 20... b4 {[%clk 0:01:37]}
21. axb4 {[%clk 0:02:44.1]} 21... axb4 {[%clk 0:01:37.4]} 22. Na4 {[%clk
0:02:36]} 22... Ra8 {[%clk 0:01:17.5]} 23. b3 {[%clk 0:02:35.6]} 23... Ne4
{[%clk 0:01:16.9]} 24. Qc2 {[%clk 0:02:26.9]} 24... Bf5 {[%clk 0:00:46]} 25. Qc1
{[%clk 0:02:26.7]} 25... f6 {[%clk 0:00:41.8]} 26. Nd3 {[%clk 0:02:25.3]} 26...
Rxa4 {[%clk 0:00:39.9]} 27. bxa4 {[%clk 0:02:24]} 27... Ra8 {[%clk 0:00:38]} 28.
Rde1 {[%clk 0:02:14.6]} 28... Rxa4 {[%clk 0:00:34.4]} 29. Nc5 {[%clk 0:02:14.4]}
29... Bxf4 {[%clk 0:00:24.9]} 30. Qb2 {[%clk 0:01:55.9]} 30... Nxc5 {[%clk
0:00:20.5]} 31. Bxf5 {[%clk 0:01:55.1]} 31... Nd7 {[%clk 0:00:18]} 32. Re8+
{[%clk 0:01:54.9]} 32... Nf8 {[%clk 0:00:16.4]} 33. Be6+ {[%clk 0:01:53.9]}
33... Kh7 {[%clk 0:00:15.4]} 34. Qc2+ {[%clk 0:01:53.6]} 34... Ng6 {[%clk
0:00:14.2]} 35. Bg8+ {[%clk 0:01:52.5]} 35... Kh8 {[%clk 0:00:13]} 36. Bf7+
{[%clk 0:01:53.1]} 36... Kh7 {[%clk 0:00:12.9]} 37. Qxg6# {[%clk 0:01:52.5]} 1-0

[Event "Late-Titled-Tuesday-Blitz-April-16-2024"]
[Site "Chess.com"]
[Date "2024.04.16"]
[Round "1"]
[White "venturov"]
[Black "h4parah5"]
[Result "0-1"]
[WhiteElo "2522"]
[BlackElo "3027"]
[TimeControl "180+1"]
[EndTime "14:05:37 PDT"]
[Termination "h4parah5 won by checkmate"]

1. Nf3 {[%clk 0:02:58.6]} 1... c5 {[%clk 0:02:59.2]} 2. e4 {[%clk 0:02:57.6]}
2... Nc6 {[%clk 0:02:58.5]} 3. d4 {[%clk 0:02:57.7]} 3... cxd4 {[%clk
0:02:58.9]} 4. Nxd4 {[%clk 0:02:58.6]} 4... Nf6 {[%clk 0:02:59.4]} 5. Nc3 {[%clk
0:02:58.7]} 5... h5 {[%clk 0:02:59.9]} 6. Be2 {[%clk 0:02:49.7]} 6... g6 {[%clk
0:02:58.7]} 7. O-O {[%clk 0:02:49.5]} 7... Bg7 {[%clk 0:02:58.9]} 8. Be3 {[%clk
0:02:46.3]} 8... Ng4 {[%clk 0:02:58.4]} 9. Nxc6 {[%clk 0:02:35.9]} 9... Qc7
{[%clk 0:02:21.7]} 10. e5 {[%clk 0:01:55.9]} 10... Nxe3 {[%clk 0:02:19.1]} 11.
fxe3 {[%clk 0:01:54.6]} 11... dxc6 {[%clk 0:02:17.2]} 12. Bc4 {[%clk 0:01:45.4]}
12... O-O {[%clk 0:02:09.8]} 13. e6 {[%clk 0:01:39.7]} 13... f5 {[%clk
0:02:01.2]} 14. e4 {[%clk 0:01:36.5]} 14... b5 {[%clk 0:01:59.7]} 15. Bb3 {[%clk
0:01:33.2]} 15... b4 {[%clk 0:01:59.6]} 16. Ne2 {[%clk 0:01:13.7]} 16... f4
{[%clk 0:01:39.3]} 17. g3 {[%clk 0:00:50.1]} 17... Ba6 {[%clk 0:01:23.4]} 18.
gxf4 {[%clk 0:00:20.5]} 18... Qb6+ {[%clk 0:01:15.9]} 19. Kh1 {[%clk 0:00:16.7]}
19... Qe3 {[%clk 0:01:15.3]} 20. Ng3 {[%clk 0:00:14.5]} 20... Bxf1 {[%clk
0:01:14.3]} 21. Qxf1 {[%clk 0:00:14.5]} 21... Rxf4 {[%clk 0:01:13.2]} 22. Qa6
{[%clk 0:00:08.6]} 22... Qf3+ {[%clk 0:01:12.4]} 23. Kg1 {[%clk 0:00:08.4]}
23... Bd4# {[%clk 0:01:12.7]} 0-1

[Event "Late-Titled-Tuesday-Blitz-April-16-2024"]
[Site "Chess.com"]
[Date "2024.04.16"]
[Round "1"]
[White "northridgehawk"]
[Black "Jimonios"]
[Result "1-0"]
[WhiteElo "2339"]
[BlackElo "2609"]
[TimeControl "180+1"]
[EndTime "14:05:49 PDT"]
[Termination "northridgehawk won by resignation"]

1. e4 {[%clk 0:03:00.5]} 1... Nc6 {[%clk 0:03:00.9]} 2. d4 {[%clk 0:03:00.4]}
2... d6 {[%clk 0:03:01.8]} 3. Nc3 {[%clk 0:03:00.3]} 3... Nf6 {[%clk 0:03:02.3]}
4. Nf3 {[%clk 0:03:00.3]} 4... g6 {[%clk 0:03:01.1]} 5. h3 {[%clk 0:02:59.2]}
5... Bg7 {[%clk 0:03:01.5]} 6. Be3 {[%clk 0:03:00.1]} 6... a6 {[%clk 0:03:01.2]}
7. Qd2 {[%clk 0:03:00.8]} 7... b5 {[%clk 0:03:01.3]} 8. O-O-O {[%clk 0:03:01.2]}
8... b4 {[%clk 0:03:00.1]} 9. e5 {[%clk 0:02:59]} 9... bxc3 {[%clk 0:02:58.8]}
10. Qxc3 {[%clk 0:02:59.1]} 10... Bd7 {[%clk 0:02:47.9]} 11. exf6 {[%clk
0:02:58.2]} 11... Bxf6 {[%clk 0:02:48.8]} 12. g4 {[%clk 0:02:56.1]} 12... a5
{[%clk 0:02:44.4]} 13. Bh6 {[%clk 0:02:56]} 13... Nb4 {[%clk 0:02:35.5]} 14. Bc4
{[%clk 0:02:53]} 14... d5 {[%clk 0:01:56.1]} 15. Bb3 {[%clk 0:02:47.8]} 15... e6
{[%clk 0:01:56.6]} 16. g5 {[%clk 0:02:44.2]} 16... Be7 {[%clk 0:01:46.2]} 17. a4
{[%clk 0:02:35.5]} 17... Bd6 {[%clk 0:01:05]} 18. Rhe1 {[%clk 0:02:33.4]} 18...
Qe7 {[%clk 0:01:03.9]} 19. Kb1 {[%clk 0:02:32.9]} 19... c5 {[%clk 0:00:58.1]}
20. dxc5 {[%clk 0:02:30.4]} 20... Bxc5 {[%clk 0:00:57.7]} 21. Bxd5 {[%clk
0:02:30.6]} 21... O-O-O {[%clk 0:00:53.3]} 22. Bg7 {[%clk 0:02:24.6]} 22... Bxa4
{[%clk 0:00:47]} 23. Bb3 {[%clk 0:02:24.1]} 23... Bxb3 {[%clk 0:00:40]} 24. cxb3
{[%clk 0:02:25]} 24... Rhg8 {[%clk 0:00:19.2]} 25. Bf6 {[%clk 0:02:24.8]} 25...
Rxd1+ {[%clk 0:00:18.7]} 26. Rxd1 {[%clk 0:02:25.7]} 26... Qc7 {[%clk
0:00:19.3]} 27. Be5 {[%clk 0:02:21.7]} 27... Qc6 {[%clk 0:00:16.4]} 28. Bd4
{[%clk 0:02:11.3]} 28... Bxd4 {[%clk 0:00:06.5]} 29. Rxd4 {[%clk 0:02:11.5]}
29... Kb7 {[%clk 0:00:05.3]} 30. Rc4 {[%clk 0:02:10.7]} 30... Qd7 {[%clk
0:00:04.4]} 31. Rd4 {[%clk 0:02:06]} 31... Qc7 {[%clk 0:00:04.1]} 32. Ne5 {[%clk
0:02:02.6]} 32... Nd5 {[%clk 0:00:03.6]} 33. Qxc7+ {[%clk 0:02:00.1]} 33... Kxc7
{[%clk 0:00:04.5]} 34. Nc4 {[%clk 0:01:58.4]} 34... Ra8 {[%clk 0:00:03.4]} 35.
h4 {[%clk 0:01:57.8]} 35... Kc6 {[%clk 0:00:03.2]} 36. h5 {[%clk 0:01:57.7]}
36... Ra7 {[%clk 0:00:03.2]} 37. hxg6 {[%clk 0:01:57.3]} 37... fxg6 {[%clk
0:00:04.1]} 38. Re4 {[%clk 0:01:56.8]} 38... Kd7 {[%clk 0:00:04.5]} 39. Rh4
{[%clk 0:01:55.9]} 39... Kc6 {[%clk 0:00:04.4]} 40. Kc2 {[%clk 0:01:54.1]} 40...
Rf7 {[%clk 0:00:04.3]} 41. Ne5+ {[%clk 0:01:52.6]} 1-0

[Event "Late-Titled-Tuesday-Blitz-April-16-2024"]
[Site "Chess.com"]
[Date "2024.04.16"]
[Round "1"]
[White "AlexPapasimakopoulos"]
[Black "HanSchut"]
[Result "1-0"]
[WhiteElo "2627"]
[BlackElo "2324"]
[TimeControl "180+1"]
[EndTime "14:05:52 PDT"]
[Termination "AlexPapasimakopoulos won by resignation"]

1. d4 {[%clk 0:02:51.5]} 1... Nf6 {[%clk 0:02:57.2]} 2. c4 {[%clk 0:02:50.7]}
2... g6 {[%clk 0:02:57.5]} 3. Nc3 {[%clk 0:02:50.3]} 3... d5 {[%clk 0:02:58.1]}
4. Nf3 {[%clk 0:02:49.2]} 4... Bg7 {[%clk 0:02:58.7]} 5. Bg5 {[%clk 0:02:49.4]}
5... Ne4 {[%clk 0:02:58.6]} 6. Bf4 {[%clk 0:02:49.2]} 6... Nxc3 {[%clk
0:02:57.8]} 7. bxc3 {[%clk 0:02:50.1]} 7... dxc4 {[%clk 0:02:58.6]} 8. e3 {[%clk
0:02:50.2]} 8... Be6 {[%clk 0:02:59.2]} 9. Qb1 {[%clk 0:02:46.2]} 9... b6 {[%clk
0:02:58.7]} 10. Be2 {[%clk 0:02:37.8]} 10... O-O {[%clk 0:02:57.3]} 11. Nd2
{[%clk 0:02:37.1]} 11... c5 {[%clk 0:02:52.7]} 12. O-O {[%clk 0:02:23.5]} 12...
cxd4 {[%clk 0:02:49.2]} 13. exd4 {[%clk 0:02:24.4]} 13... Nc6 {[%clk 0:02:40]}
14. Nxc4 {[%clk 0:02:15.7]} 14... Bxc4 {[%clk 0:02:37.4]} 15. Bxc4 {[%clk
0:02:15.3]} 15... Na5 {[%clk 0:02:30.5]} 16. Ba6 {[%clk 0:02:12.3]} 16... Qd7
{[%clk 0:02:11.5]} 17. Qb4 {[%clk 0:02:03.3]} 17... Nc6 {[%clk 0:01:53]} 18. Qa4
{[%clk 0:01:58]} 18... e5 {[%clk 0:01:46.9]} 19. Bb5 {[%clk 0:01:43.8]} 19...
exf4 {[%clk 0:01:43.8]} 20. Bxc6 {[%clk 0:01:43.8]} 20... Qg4 {[%clk 0:01:43.9]}
21. Bxa8 {[%clk 0:01:42.8]} 21... Rxa8 {[%clk 0:01:44.5]} 22. f3 {[%clk
0:01:34.1]} 22... Qc8 {[%clk 0:01:29.1]} 23. Rac1 {[%clk 0:01:28.7]} 23... Qc7
{[%clk 0:01:27.9]} 24. Rfd1 {[%clk 0:01:25.8]} 24... Rd8 {[%clk 0:01:26.9]} 25.
Kh1 {[%clk 0:01:20.4]} 25... g5 {[%clk 0:01:24.4]} 26. Qb5 {[%clk 0:01:19.2]}
26... g4 {[%clk 0:01:16.8]} 27. fxg4 {[%clk 0:01:17.6]} 27... f3 {[%clk
0:01:17]} 28. gxf3 {[%clk 0:01:17.8]} 28... Qf4 {[%clk 0:01:17]} 29. Qe2 {[%clk
0:01:10.9]} 29... h5 {[%clk 0:01:08.2]} 30. gxh5 {[%clk 0:01:05.9]} 30... Bh6
{[%clk 0:01:01.5]} 31. Rg1+ {[%clk 0:01:01]} 31... Kf8 {[%clk 0:01:01]} 32. Rce1
{[%clk 0:00:59.9]} 32... Qh4 {[%clk 0:00:53]} 33. Rg4 {[%clk 0:00:56.2]} 33...
Qf6 {[%clk 0:00:51.5]} 34. Reg1 {[%clk 0:00:53.2]} 1-0

[Event "Late-Titled-Tuesday-Blitz-April-16-2024"]
[Site "Chess.com"]
[Date "2024.04.16"]
[Round "1"]
[White "Msb2"]
[Black "pooh2012"]
[Result "1-0"]
[WhiteElo "3011"]
[BlackElo "2512"]
[TimeControl "180+1"]
[EndTime "14:05:53 PDT"]
[Termination "Msb2 won by resignation"]

1. d4 {[%clk 0:03:00.9]} 1... Nf6 {[%clk 0:02:59.1]} 2. c4 {[%clk 0:02:59.1]}
2... e6 {[%clk 0:02:58.2]} 3. Nc3 {[%clk 0:02:59.8]} 3... Bb4 {[%clk 0:02:56.1]}
4. e3 {[%clk 0:03:00.2]} 4... O-O {[%clk 0:02:54.3]} 5. Bd2 {[%clk 0:03:00.9]}
5... d5 {[%clk 0:02:49.9]} 6. Nf3 {[%clk 0:03:01.2]} 6... b6 {[%clk 0:02:46.7]}
7. cxd5 {[%clk 0:03:01.6]} 7... exd5 {[%clk 0:02:39]} 8. Rc1 {[%clk 0:03:01.5]}
8... a6 {[%clk 0:02:36.9]} 9. Bd3 {[%clk 0:03:00]} 9... Bb7 {[%clk 0:02:33.7]}
10. O-O {[%clk 0:03:00.1]} 10... Nbd7 {[%clk 0:02:28.9]} 11. Ne5 {[%clk
0:03:00.1]} 11... Bd6 {[%clk 0:02:26.5]} 12. f4 {[%clk 0:02:59.6]} 12... c5
{[%clk 0:02:24.6]} 13. Qf3 {[%clk 0:03:00.2]} 13... Re8 {[%clk 0:02:08.8]} 14.
Be1 {[%clk 0:02:59.6]} 14... cxd4 {[%clk 0:02:01.5]} 15. exd4 {[%clk 0:02:59.5]}
15... b5 {[%clk 0:01:52.3]} 16. Qh3 {[%clk 0:02:53]} 16... Nf8 {[%clk
0:01:29.8]} 17. Bh4 {[%clk 0:02:51.2]} 17... Be7 {[%clk 0:00:58.6]} 18. Qf3
{[%clk 0:02:28.6]} 18... Qb6 {[%clk 0:00:53.5]} 19. Kh1 {[%clk 0:02:27.2]} 19...
Qxd4 {[%clk 0:00:48.5]} 20. Rcd1 {[%clk 0:02:17.9]} 20... Qb6 {[%clk 0:00:44.4]}
21. Bxf6 {[%clk 0:02:09.6]} 21... Bxf6 {[%clk 0:00:42.1]} 22. Nxd5 {[%clk
0:02:10.3]} 22... Bxd5 {[%clk 0:00:40.1]} 23. Qxd5 {[%clk 0:02:11.2]} 23... Qe6
{[%clk 0:00:37.9]} 24. Be4 {[%clk 0:02:01.3]} 24... Bxe5 {[%clk 0:00:36.5]} 25.
fxe5 {[%clk 0:02:01.3]} 25... Rab8 {[%clk 0:00:29.2]} 26. b3 {[%clk 0:01:55.1]}
26... Ng6 {[%clk 0:00:24.5]} 27. Bxg6 {[%clk 0:01:49.1]} 27... hxg6 {[%clk
0:00:25.4]} 28. Qf3 {[%clk 0:01:49.8]} 28... Re7 {[%clk 0:00:21.6]} 29. Rd6
{[%clk 0:01:49.7]} 29... Qxe5 {[%clk 0:00:20.8]} 30. Rxa6 {[%clk 0:01:50.4]}
30... Rd8 {[%clk 0:00:15.6]} 31. h3 {[%clk 0:01:50.4]} 31... Qe2 {[%clk
0:00:13.4]} 32. Qf4 {[%clk 0:01:22.4]} 32... Rd1 {[%clk 0:00:10.8]} 33. Ra8+
{[%clk 0:01:22.6]} 1-0

[Event "Late-Titled-Tuesday-Blitz-April-16-2024"]
[Site "Chess.com"]
[Date "2024.04.16"]
[Round "1"]
[White "IMGC"]
[Black "Gabrielian_Artur"]
[Result "0-1"]
[WhiteElo "2440"]
[BlackElo "2795"]
[TimeControl "180+1"]
[EndTime "14:05:59 PDT"]
[Termination "Gabrielian_Artur won by resignation"]

1. Nf3 {[%clk 0:03:00.9]} 1... Nf6 {[%clk 0:02:59.3]} 2. e3 {[%clk 0:03:01.2]}
2... g6 {[%clk 0:02:59.4]} 3. d4 {[%clk 0:03:01.5]} 3... Bg7 {[%clk 0:02:59.6]}
4. Be2 {[%clk 0:03:02.1]} 4... O-O {[%clk 0:02:59.6]} 5. O-O {[%clk 0:03:03]}
5... d6 {[%clk 0:02:59.6]} 6. b3 {[%clk 0:03:03.4]} 6... e5 {[%clk 0:02:58.6]}
7. Bb2 {[%clk 0:03:03.6]} 7... e4 {[%clk 0:02:56.9]} 8. Nfd2 {[%clk 0:03:03]}
8... Re8 {[%clk 0:02:54.1]} 9. c4 {[%clk 0:03:03.2]} 9... h5 {[%clk 0:02:50.7]}
10. Nc3 {[%clk 0:03:02.7]} 10... Bg4 {[%clk 0:02:44.8]} 11. b4 {[%clk
0:02:39.3]} 11... Nbd7 {[%clk 0:02:43.1]} 12. a4 {[%clk 0:02:35.7]} 12... Nf8
{[%clk 0:02:41.3]} 13. a5 {[%clk 0:02:35.5]} 13... a6 {[%clk 0:02:38.9]} 14. b5
{[%clk 0:02:34.4]} 14... N8h7 {[%clk 0:02:38.4]} 15. bxa6 {[%clk 0:02:33]} 15...
bxa6 {[%clk 0:02:37.1]} 16. Re1 {[%clk 0:02:27.7]} 16... Ng5 {[%clk 0:02:35.8]}
17. f4 {[%clk 0:02:06.2]} 17... exf3 {[%clk 0:02:29.9]} 18. gxf3 {[%clk
0:02:06.5]} 18... Rb8 {[%clk 0:02:06.2]} 19. Rb1 {[%clk 0:01:53.5]} 19... Nh3+
{[%clk 0:02:03.9]} 20. Kg2 {[%clk 0:01:45.1]} 20... Bf5 {[%clk 0:02:00.5]} 21.
e4 {[%clk 0:01:39.7]} 21... Nf4+ {[%clk 0:01:59.6]} 22. Kh1 {[%clk 0:01:37.3]}
22... Bh3 {[%clk 0:01:53.1]} 23. Bf1 {[%clk 0:01:30]} 23... Qd7 {[%clk 0:01:50]}
24. Qc2 {[%clk 0:00:32.3]} 24... Bxf1 {[%clk 0:01:16.9]} 25. Nxf1 {[%clk
0:00:33.2]} 25... Qh3 {[%clk 0:01:15.3]} 26. Re3 {[%clk 0:00:07.6]} 26... Nh7
{[%clk 0:01:09]} 27. Qf2 {[%clk 0:00:03.6]} 27... Bxd4 {[%clk 0:01:07.4]} 0-1